[Event "Titled Tuesday Blitz March 07 Early 2023"]
[White "Pissama Ntsaou, Martial"]
[Black "Dishman, Stephen"]
[WhiteFideId "17400864"]
[BlackFideId "403024"]
[WhiteElo "2063"]
[BlackElo "2204"]
[Result "0-1"]
[Round "03"]
[TimeControl "180+2"]
[Date "2023.03.07"]
[WhiteClock "0:00:09"]
[BlackClock "0:00:13"]

1. e4 {[%clk 0:03:00]}  c5 {[%clk 0:02:59]} 2. Nf3 {[%clk 0:03:00]}  g6 {[%clk 0:02:59]} 3. c4 {[%clk 0:02:59]}  Nc6 {[%clk 0:02:57]} 4. d4 {[%clk 0:02:59]}  cxd4 {[%clk 0:02:57]} 5. Nxd4 {[%clk 0:02:59]}  Nf6 {[%clk 0:02:57]} 6. Nc3 {[%clk 0:02:59]}  d6 {[%clk 0:02:57]} 7. Be2 {[%clk 0:02:55]}  Nxd4 {[%clk 0:02:57]} 8. Qxd4 {[%clk 0:02:54]}  Bg7 {[%clk 0:02:57]} 9. Be3 {[%clk 0:02:49]}  O-O {[%clk 0:02:57]} 10. Qd2 {[%clk 0:02:48]}  a5 {[%clk 0:02:56]} 11. b3 {[%clk 0:02:45]}  a4 {[%clk 0:02:51]} 12. O-O {[%clk 0:02:42]}  Qa5 {[%clk 0:02:42]} 13. f3 {[%clk 0:02:11]}  Bd7 {[%clk 0:02:42]} 14. Rac1 {[%clk 0:01:49]}  axb3 {[%clk 0:02:40]} 15. axb3 {[%clk 0:01:48]}  Rfc8 {[%clk 0:02:07]} 16. Kh1 {[%clk 0:01:28]}  Bc6 {[%clk 0:01:58]} 17. f4 {[%clk 0:01:19]}  Nxe4 {[%clk 0:01:53]} 18. Nxe4 {[%clk 0:01:09]}  Bxe4 {[%clk 0:01:53]} 19. Bf3 {[%clk 0:00:59]}  Qxd2 {[%clk 0:01:47]} 20. Bxd2 {[%clk 0:00:59]}  Bxf3 {[%clk 0:01:47]} 21. Rxf3 {[%clk 0:00:59]}  Ra2 {[%clk 0:01:43]} 22. Bc3 {[%clk 0:00:49]}  Rca8 {[%clk 0:01:35]} 23. h3 {[%clk 0:00:45]}  Bxc3 {[%clk 0:01:29]} 24. Rfxc3 {[%clk 0:00:44]}  Rb2 {[%clk 0:01:27]} 25. Re3 {[%clk 0:00:44]}  Raa2 {[%clk 0:01:20]} 26. Rxe7 {[%clk 0:00:40]}  Rxg2 {[%clk 0:01:20]} 27. Rxb7 {[%clk 0:00:40]}  Rh2+ {[%clk 0:01:19]} 28. Kg1 {[%clk 0:00:40]}  Rag2+ {[%clk 0:01:02]} 29. Kf1 {[%clk 0:00:40]}  Rg3 {[%clk 0:01:00]} 30. Re1 {[%clk 0:00:28]}  Rh1+ {[%clk 0:00:36]} 31. Kf2 {[%clk 0:00:28]}  Rgxh3 {[%clk 0:00:26]} 32. Re8+ {[%clk 0:00:25]}  Kg7 {[%clk 0:00:24]} 33. Ree7 {[%clk 0:00:25]}  R1h2+ {[%clk 0:00:20]} 34. Kg1 {[%clk 0:00:25]}  g5 {[%clk 0:00:18]} 35. Rxf7+ {[%clk 0:00:25]}  Kg6 {[%clk 0:00:18]} 36. Rg7+ {[%clk 0:00:25]}  Kf5 {[%clk 0:00:18]} 37. Rxg5+ {[%clk 0:00:17]}  Kxf4 {[%clk 0:00:17]} 38. Rgg7 {[%clk 0:00:16]}  Rh1+ {[%clk 0:00:16]} 39. Kg2 {[%clk 0:00:16]}  R1h2+ {[%clk 0:00:17]} 40. Kg1 {[%clk 0:00:16]}  Rb2 {[%clk 0:00:15]} 41. Rxh7 {[%clk 0:00:11]}  Rc3 {[%clk 0:00:14]} 42. Rh4+ {[%clk 0:00:09]}  Kg5 {[%clk 0:00:13]} 0-1


[Site "https://www.chess.com"]

[Event "Titled Tuesday Blitz March 07 Early 2023"]
[White "Buscar, Michael"]
[Black "Necula, Iulian"]
[WhiteFideId "2603616"]
[BlackFideId "1232380"]
[WhiteElo "2010"]
[BlackElo "1790"]
[Result "1-0"]
[Round "03"]
[TimeControl "180+2"]
[Date "2023.03.07"]
[WhiteClock "0:00:21"]
[BlackClock "0:00:08"]

1. Nf3 {[%clk 0:03:00]}  d6 {[%clk 0:02:59]} 2. b3 {[%clk 0:03:01]}  e5 {[%clk 0:02:57]} 3. Bb2 {[%clk 0:03:01]}  Nf6 {[%clk 0:02:55]} 4. c4 {[%clk 0:03:00]}  Be7 {[%clk 0:02:54]} 5. e3 {[%clk 0:03:00]}  O-O {[%clk 0:02:54]} 6. d3 {[%clk 0:03:00]}  Bg4 {[%clk 0:02:52]} 7. Be2 {[%clk 0:03:00]}  Nc6 {[%clk 0:02:51]} 8. Nbd2 {[%clk 0:03:00]}  Re8 {[%clk 0:02:44]} 9. a3 {[%clk 0:03:00]}  a5 {[%clk 0:02:44]} 10. Nf1 {[%clk 0:02:59]}  h6 {[%clk 0:02:40]} 11. Ng3 {[%clk 0:02:59]}  Bf8 {[%clk 0:02:38]} 12. h3 {[%clk 0:02:59]}  Be6 {[%clk 0:02:34]} 13. O-O {[%clk 0:02:56]}  Ne7 {[%clk 0:02:26]} 14. Qc2 {[%clk 0:02:52]}  Nf5 {[%clk 0:02:25]} 15. e4 {[%clk 0:02:41]}  Nxg3 {[%clk 0:02:25]} 16. fxg3 {[%clk 0:02:42]}  Nh5 {[%clk 0:02:23]} 17. Kh2 {[%clk 0:02:41]}  c5 {[%clk 0:02:06]} 18. Nxe5 {[%clk 0:02:33]}  dxe5 {[%clk 0:02:03]} 19. Bxh5 {[%clk 0:02:30]}  Qg5 {[%clk 0:01:52]} 20. Be2 {[%clk 0:02:26]}  Bd6 {[%clk 0:01:50]} 21. Bc1 {[%clk 0:02:23]}  Qg6 {[%clk 0:01:49]} 22. Be3 {[%clk 0:02:23]}  b6 {[%clk 0:01:48]} 23. Qd2 {[%clk 0:02:11]}  f5 {[%clk 0:01:43]} 24. exf5 {[%clk 0:01:58]}  Bxf5 {[%clk 0:01:42]} 25. g4 {[%clk 0:01:42]}  e4+ {[%clk 0:01:34]} 26. Kh1 {[%clk 0:01:42]}  Bd7 {[%clk 0:01:27]} 27. dxe4 {[%clk 0:01:36]}  Bc6 {[%clk 0:01:26]} 28. Bf4 {[%clk 0:01:27]}  Bxf4 {[%clk 0:01:25]} 29. Rxf4 {[%clk 0:01:22]}  Rad8 {[%clk 0:01:23]} 30. Qc3 {[%clk 0:01:17]}  Rxe4 {[%clk 0:01:21]} 31. Raf1 {[%clk 0:01:08]}  Rxe2 {[%clk 0:01:17]} 32. R4f2 {[%clk 0:01:01]}  Rdd2 {[%clk 0:01:10]} 33. Qxd2 {[%clk 0:01:00]}  Rxd2 {[%clk 0:01:10]} 34. Rxd2 {[%clk 0:01:01]}  Qe4 {[%clk 0:01:00]} 35. a4 {[%clk 0:00:50]}  Kh7 {[%clk 0:00:55]} 36. Rb2 {[%clk 0:00:42]}  g6 {[%clk 0:00:50]} 37. Rf7+ {[%clk 0:00:37]}  Kg8 {[%clk 0:00:50]} 38. Rbf2 {[%clk 0:00:37]}  h5 {[%clk 0:00:47]} 39. g5 {[%clk 0:00:29]}  Qe1+ {[%clk 0:00:44]} 40. Rf1 {[%clk 0:00:24]}  Qe5 {[%clk 0:00:12]} 41. Rf8+ {[%clk 0:00:22]}  Kh7 {[%clk 0:00:06]} 42. R1f7+ {[%clk 0:00:21]}  Qg7 {[%clk 0:00:07]} 43. Rxg7+ {[%clk 0:00:21]}  Kxg7 {[%clk 0:00:08]} 44. Rb8 {[%clk 0:00:21]} 1-0


[Site "https://www.chess.com"]

[Event "Titled Tuesday Blitz March 07 Early 2023"]
[White "Castillo Pena, Patricia Evarista"]
[Black "Orujov, Elshad"]
[WhiteFideId "6412106"]
[BlackFideId "13403540"]
[WhiteElo "1919"]
[BlackElo "2342"]
[Result "0-1"]
[Round "03"]
[TimeControl "180+2"]
[Date "2023.03.07"]
[WhiteClock "0:00:02"]
[BlackClock "0:00:28"]

1. d4 {[%clk 0:02:59]}  Nf6 {[%clk 0:03:00]} 2. Nf3 {[%clk 0:02:59]}  d5 {[%clk 0:02:59]} 3. e3 {[%clk 0:02:58]}  c5 {[%clk 0:02:59]} 4. Bd3 {[%clk 0:02:57]}  Nc6 {[%clk 0:02:59]} 5. b3 {[%clk 0:02:57]}  Bg4 {[%clk 0:02:57]} 6. Bb2 {[%clk 0:02:55]}  e6 {[%clk 0:02:57]} 7. Nbd2 {[%clk 0:02:53]}  Bd6 {[%clk 0:02:57]} 8. O-O {[%clk 0:02:51]}  cxd4 {[%clk 0:02:55]} 9. exd4 {[%clk 0:02:51]}  O-O {[%clk 0:02:54]} 10. Re1 {[%clk 0:02:50]}  Rc8 {[%clk 0:02:45]} 11. a3 {[%clk 0:02:48]}  a6 {[%clk 0:02:42]} 12. c4 {[%clk 0:02:43]}  Bf4 {[%clk 0:02:33]} 13. Qc2 {[%clk 0:02:15]}  Bxd2 {[%clk 0:02:28]} 14. Nxd2 {[%clk 0:02:14]}  dxc4 {[%clk 0:02:27]} 15. bxc4 {[%clk 0:02:13]}  Nxd4 {[%clk 0:02:24]} 16. Bxd4 {[%clk 0:02:03]}  Qxd4 {[%clk 0:02:25]} 17. Ne4 {[%clk 0:01:59]}  Bf5 {[%clk 0:02:13]} 18. Nxf6+ {[%clk 0:01:56]}  Qxf6 {[%clk 0:02:14]} 19. Rac1 {[%clk 0:01:49]}  Bxd3 {[%clk 0:02:12]} 20. Qxd3 {[%clk 0:01:49]}  Rfd8 {[%clk 0:02:13]} 21. Qb3 {[%clk 0:01:42]}  Rc7 {[%clk 0:02:11]} 22. Qb6 {[%clk 0:01:35]}  Rdc8 {[%clk 0:02:10]} 23. Red1 {[%clk 0:01:30]}  h6 {[%clk 0:02:09]} 24. c5 {[%clk 0:01:28]}  Qe5 {[%clk 0:02:02]} 25. c6 {[%clk 0:01:09]}  Rxc6 {[%clk 0:01:48]} 26. Rxc6 {[%clk 0:01:08]}  Rxc6 {[%clk 0:01:49]} 27. Qxb7 {[%clk 0:01:02]}  Qc7 {[%clk 0:01:47]} 28. Qb1 {[%clk 0:00:54]}  g6 {[%clk 0:01:45]} 29. h3 {[%clk 0:00:53]}  Rc2 {[%clk 0:01:40]} 30. Qb3 {[%clk 0:00:39]}  Rc1 {[%clk 0:01:26]} 31. g3 {[%clk 0:00:28]}  Rxd1+ {[%clk 0:01:25]} 32. Qxd1 {[%clk 0:00:29]}  Qc3 {[%clk 0:01:23]} 33. Qa4 {[%clk 0:00:25]}  Qd3 {[%clk 0:01:16]} 34. Qe8+ {[%clk 0:00:19]}  Kg7 {[%clk 0:01:16]} 35. a4 {[%clk 0:00:19]}  a5 {[%clk 0:01:09]} 36. Kg2 {[%clk 0:00:08]}  Qe4+ {[%clk 0:01:06]} 37. Kg1 {[%clk 0:00:07]}  Qb4 {[%clk 0:01:06]} 38. Kg2 {[%clk 0:00:07]}  Qe4+ {[%clk 0:01:01]} 39. Kg1 {[%clk 0:00:07]}  e5 {[%clk 0:01:01]} 40. Qb5 {[%clk 0:00:06]}  Qe1+ {[%clk 0:01:00]} 41. Kg2 {[%clk 0:00:07]}  h5 {[%clk 0:01:00]} 42. h4 {[%clk 0:00:06]}  Qc3 {[%clk 0:00:54]} 43. Kg1 {[%clk 0:00:06]}  e4 {[%clk 0:00:52]} 44. Kg2 {[%clk 0:00:04]}  e3 {[%clk 0:00:34]} 45. fxe3 {[%clk 0:00:04]}  Qxe3 {[%clk 0:00:33]} 46. Kh3 {[%clk 0:00:04]}  Qe1 {[%clk 0:00:29]} 47. Qb2+ {[%clk 0:00:03]}  Kh7 {[%clk 0:00:28]} 48. Qb5 {[%clk 0:00:02]}  Qh1# {[%clk 0:00:28]} 0-1


[Site "https://www.chess.com"]

[Event "Titled Tuesday Blitz March 07 Early 2023"]
[White "Carlsen, Magnus"]
[Black "Ibarra Jerez, Jose Carlos"]
[WhiteFideId "1503014"]
[BlackFideId "2226332"]
[WhiteElo "2852"]
[BlackElo "2638"]
[Result "1-0"]
[Round "04"]
[TimeControl "180+2"]
[Date "2023.03.07"]
[WhiteClock "0:02:41"]
[BlackClock "0:00:31"]

1. d4 {[%clk 0:02:59]}  Nf6 {[%clk 0:02:58]} 2. Nf3 {[%clk 0:02:55]}  g6 {[%clk 0:02:58]} 3. Nc3 {[%clk 0:02:54]}  d5 {[%clk 0:02:57]} 4. Bf4 {[%clk 0:02:54]}  Bg7 {[%clk 0:02:53]} 5. e3 {[%clk 0:02:55]}  c5 {[%clk 0:02:49]} 6. Nb5 {[%clk 0:02:54]}  Na6 {[%clk 0:02:41]} 7. h3 {[%clk 0:02:54]}  Ne4 {[%clk 0:02:37]} 8. c3 {[%clk 0:02:53]}  O-O {[%clk 0:02:36]} 9. Be2 {[%clk 0:02:53]}  Bd7 {[%clk 0:02:20]} 10. O-O {[%clk 0:02:53]}  Qb6 {[%clk 0:02:20]} 11. a4 {[%clk 0:02:53]}  c4 {[%clk 0:02:17]} 12. Nd2 {[%clk 0:02:54]}  Nxd2 {[%clk 0:02:15]} 13. Qxd2 {[%clk 0:02:55]}  Bxb5 {[%clk 0:02:13]} 14. axb5 {[%clk 0:02:55]}  Qxb5 {[%clk 0:02:14]} 15. b3 {[%clk 0:02:55]}  Qc6 {[%clk 0:02:05]} 16. bxc4 {[%clk 0:02:55]}  dxc4 {[%clk 0:02:05]} 17. Bf3 {[%clk 0:02:55]}  Qd7 {[%clk 0:01:52]} 18. Qb2 {[%clk 0:02:54]}  e5 {[%clk 0:01:43]} 19. Qxb7 {[%clk 0:02:54]}  Qxb7 {[%clk 0:01:39]} 20. Bxb7 {[%clk 0:02:55]}  Rab8 {[%clk 0:01:37]} 21. Bxa6 {[%clk 0:02:54]}  exf4 {[%clk 0:01:37]} 22. Bxc4 {[%clk 0:02:55]}  Rfc8 {[%clk 0:01:26]} 23. Ra4 {[%clk 0:02:55]}  Rb2 {[%clk 0:01:20]} 24. Bd5 {[%clk 0:02:52]}  Rxc3 {[%clk 0:01:16]} 25. Rxa7 {[%clk 0:02:51]}  h5 {[%clk 0:01:08]} 26. Rxf7 {[%clk 0:02:51]}  Kh8 {[%clk 0:00:53]} 27. Rxf4 {[%clk 0:02:47]}  Rc7 {[%clk 0:00:44]} 28. h4 {[%clk 0:02:45]}  Kh7 {[%clk 0:00:45]} 29. g3 {[%clk 0:02:45]}  Bh6 {[%clk 0:00:45]} 30. Rf7+ {[%clk 0:02:45]}  Rxf7 {[%clk 0:00:44]} 31. Bxf7 {[%clk 0:02:46]}  Kg7 {[%clk 0:00:44]} 32. Bd5 {[%clk 0:02:45]}  g5 {[%clk 0:00:45]} 33. hxg5 {[%clk 0:02:44]}  Bxg5 {[%clk 0:00:45]} 34. Ra1 {[%clk 0:02:43]}  h4 {[%clk 0:00:46]} 35. Ra7+ {[%clk 0:02:43]}  Kf8 {[%clk 0:00:45]} 36. Rf7+ {[%clk 0:02:42]}  Ke8 {[%clk 0:00:46]} 37. Rf5 {[%clk 0:02:43]}  Be7 {[%clk 0:00:39]} 38. g4 {[%clk 0:02:43]}  h3 {[%clk 0:00:33]} 39. Rh5 {[%clk 0:02:43]}  Bb4 {[%clk 0:00:32]} 40. Rxh3 {[%clk 0:02:42]}  Be1 {[%clk 0:00:33]} 41. Rf3 {[%clk 0:02:43]}  Ke7 {[%clk 0:00:33]} 42. Kf1 {[%clk 0:02:41]}  Bb4 {[%clk 0:00:31]} 43. Rf7+ {[%clk 0:02:40]}  Ke8 {[%clk 0:00:31]} 44. Rf5 {[%clk 0:02:41]}  Rb1+ {[%clk 0:00:30]} 45. Kg2 {[%clk 0:02:41]}  Bd6 {[%clk 0:00:31]} 46. g5 {[%clk 0:02:41]} 1-0


[Site "https://www.chess.com"]

[Event "Titled Tuesday Blitz March 07 Early 2023"]
[White "Nakamura, Hikaru"]
[Black "Mitrabha, Guha"]
[WhiteFideId "2016192"]
[BlackFideId "5057000"]
[WhiteElo "2879"]
[BlackElo "2507"]
[Result "1-0"]
[Round "04"]
[TimeControl "180+2"]
[Date "2023.03.07"]
[WhiteClock "0:01:34"]
[BlackClock "0:02:01"]

1. Nf3 {[%clk 0:03:00]}  Nf6 {[%clk 0:02:46]} 2. g3 {[%clk 0:02:59]}  c5 {[%clk 0:02:46]} 3. d3 {[%clk 0:02:53]}  Nc6 {[%clk 0:02:46]} 4. e4 {[%clk 0:02:52]}  d6 {[%clk 0:02:46]} 5. Bg2 {[%clk 0:02:52]}  g6 {[%clk 0:02:46]} 6. O-O {[%clk 0:02:52]}  Bg7 {[%clk 0:02:46]} 7. Nbd2 {[%clk 0:02:52]}  O-O {[%clk 0:02:47]} 8. Re1 {[%clk 0:02:52]}  e5 {[%clk 0:02:46]} 9. a4 {[%clk 0:02:51]}  h6 {[%clk 0:02:44]} 10. Nc4 {[%clk 0:02:43]}  Be6 {[%clk 0:02:44]} 11. c3 {[%clk 0:02:43]}  b6 {[%clk 0:02:42]} 12. Ne3 {[%clk 0:02:38]}  d5 {[%clk 0:02:36]} 13. exd5 {[%clk 0:02:13]}  Nxd5 {[%clk 0:02:37]} 14. Nc4 {[%clk 0:02:14]}  Qc7 {[%clk 0:02:34]} 15. a5 {[%clk 0:02:14]}  b5 {[%clk 0:02:25]} 16. Ne3 {[%clk 0:02:14]}  a6 {[%clk 0:02:21]} 17. Ng5 {[%clk 0:02:08]}  hxg5 {[%clk 0:02:09]} 18. Nxd5 {[%clk 0:02:08]}  Bxd5 {[%clk 0:02:09]} 19. Bxd5 {[%clk 0:02:08]}  Rad8 {[%clk 0:02:10]} 20. Ba2 {[%clk 0:01:52]}  c4 {[%clk 0:02:06]} 21. Bxg5 {[%clk 0:01:47]}  Rxd3 {[%clk 0:02:06]} 22. Qg4 {[%clk 0:01:42]}  f5 {[%clk 0:02:05]} 23. Qe2 {[%clk 0:01:42]}  e4 {[%clk 0:02:03]} 24. Bb1 {[%clk 0:01:36]}  Ne5 {[%clk 0:02:02]} 25. Bf4 {[%clk 0:01:36]}  Nf3+ {[%clk 0:02:01]} 26. Qxf3 {[%clk 0:01:34]} 1-0


[Site "https://www.chess.com"]

[Event "Titled Tuesday Blitz March 07 Early 2023"]
[White "Perez Ponsa, Federico"]
[Black "Naroditsky, Daniel"]
[WhiteFideId "117927"]
[BlackFideId "2026961"]
[WhiteElo "2592"]
[BlackElo "2633"]
[Result "0-1"]
[Round "04"]
[TimeControl "180+2"]
[Date "2023.03.07"]
[WhiteClock "0:00:24"]
[BlackClock "0:00:16"]

1. e4 {[%clk 0:02:48]}  Nc6 {[%clk 0:02:58]} 2. Nf3 {[%clk 0:02:47]}  d6 {[%clk 0:02:57]} 3. Bb5 {[%clk 0:02:44]}  Nf6 {[%clk 0:02:50]} 4. Nc3 {[%clk 0:02:38]}  g6 {[%clk 0:02:45]} 5. O-O {[%clk 0:02:35]}  Bg7 {[%clk 0:02:45]} 6. d4 {[%clk 0:02:28]}  O-O {[%clk 0:02:41]} 7. Bxc6 {[%clk 0:02:26]}  bxc6 {[%clk 0:02:41]} 8. h3 {[%clk 0:02:26]}  Nd7 {[%clk 0:02:25]} 9. Be3 {[%clk 0:02:25]}  c5 {[%clk 0:02:14]} 10. d5 {[%clk 0:02:21]}  Rb8 {[%clk 0:02:10]} 11. Rb1 {[%clk 0:02:21]}  Nb6 {[%clk 0:02:02]} 12. Qc1 {[%clk 0:02:12]}  Re8 {[%clk 0:01:57]} 13. Bh6 {[%clk 0:02:12]}  Bh8 {[%clk 0:01:58]} 14. Re1 {[%clk 0:02:12]}  Nc4 {[%clk 0:01:45]} 15. Nd1 {[%clk 0:02:07]}  c6 {[%clk 0:01:45]} 16. b3 {[%clk 0:02:06]}  Nb6 {[%clk 0:01:41]} 17. c4 {[%clk 0:02:04]}  cxd5 {[%clk 0:01:41]} 18. exd5 {[%clk 0:02:03]}  Bf5 {[%clk 0:01:40]} 19. Rb2 {[%clk 0:02:01]}  Bxb2 {[%clk 0:01:21]} 20. Qxb2 {[%clk 0:02:02]}  f6 {[%clk 0:01:22]} 21. Ne3 {[%clk 0:02:00]}  Bd7 {[%clk 0:01:13]} 22. Ng5 {[%clk 0:01:47]}  Rb7 {[%clk 0:00:42]} 23. Qc3 {[%clk 0:01:44]}  e5 {[%clk 0:00:38]} 24. dxe6 {[%clk 0:01:35]}  Bxe6 {[%clk 0:00:38]} 25. Ne4 {[%clk 0:01:33]}  Rf7 {[%clk 0:00:36]} 26. Rd1 {[%clk 0:01:33]}  Bd5 {[%clk 0:00:29]} 27. Nxd5 {[%clk 0:00:58]}  Rxe4 {[%clk 0:00:26]} 28. Qf3 {[%clk 0:00:56]}  Nxd5 {[%clk 0:00:19]} 29. Qxe4 {[%clk 0:00:22]}  Nc3 {[%clk 0:00:19]} 30. Rxd6 {[%clk 0:00:23]}  Qxd6 {[%clk 0:00:20]} 31. Qa8+ {[%clk 0:00:23]}  Rf8 {[%clk 0:00:20]} 32. Bxf8 {[%clk 0:00:24]}  Ne2+ {[%clk 0:00:16]} 0-1


[Site "https://www.chess.com"]

[Event "Titled Tuesday Blitz March 07 Early 2023"]
[White "Duda, Jan-Krzysztof"]
[Black "Harsha Bharathakoti"]
[WhiteFideId "1170546"]
[BlackFideId "5078776"]
[WhiteElo "2790"]
[BlackElo "2481"]
[Result "1-0"]
[Round "04"]
[TimeControl "180+2"]
[Date "2023.03.07"]
[WhiteClock "0:00:07"]
[BlackClock "0:00:02"]

1. d4 {[%clk 0:03:00]}  Nf6 {[%clk 0:02:55]} 2. Bg5 {[%clk 0:03:01]}  e6 {[%clk 0:02:53]} 3. e4 {[%clk 0:03:01]}  h6 {[%clk 0:02:53]} 4. Bxf6 {[%clk 0:03:01]}  Qxf6 {[%clk 0:02:54]} 5. c3 {[%clk 0:03:02]}  d6 {[%clk 0:02:49]} 6. Bd3 {[%clk 0:02:58]}  g6 {[%clk 0:02:49]} 7. Ne2 {[%clk 0:02:58]}  Bg7 {[%clk 0:02:49]} 8. f4 {[%clk 0:02:56]}  e5 {[%clk 0:02:48]} 9. O-O {[%clk 0:02:54]}  Qe7 {[%clk 0:02:49]} 10. f5 {[%clk 0:02:43]}  O-O {[%clk 0:02:41]} 11. Na3 {[%clk 0:02:27]}  Nd7 {[%clk 0:02:36]} 12. Nc2 {[%clk 0:02:22]}  Nf6 {[%clk 0:02:33]} 13. Ng3 {[%clk 0:02:07]}  Bd7 {[%clk 0:02:10]} 14. Bc4 {[%clk 0:01:58]}  Kh7 {[%clk 0:02:05]} 15. Qd3 {[%clk 0:01:58]}  c6 {[%clk 0:01:33]} 16. Rae1 {[%clk 0:01:57]}  h5 {[%clk 0:01:31]} 17. Bb3 {[%clk 0:01:44]}  Bh6 {[%clk 0:01:27]} 18. Nh1 {[%clk 0:01:05]}  gxf5 {[%clk 0:01:12]} 19. dxe5 {[%clk 0:01:01]}  dxe5 {[%clk 0:01:12]} 20. exf5 {[%clk 0:01:01]}  Rg8 {[%clk 0:00:48]} 21. Ng3 {[%clk 0:01:00]}  Rg4 {[%clk 0:00:36]} 22. Be6 {[%clk 0:00:29]}  Rag8 {[%clk 0:00:20]} 23. Bxd7 {[%clk 0:00:27]}  Qxd7 {[%clk 0:00:19]} 24. Qxd7 {[%clk 0:00:25]}  Nxd7 {[%clk 0:00:20]} 25. Rf2 {[%clk 0:00:25]}  Nc5 {[%clk 0:00:13]} 26. Nxh5 {[%clk 0:00:19]}  Bg5 {[%clk 0:00:09]} 27. Rf3 {[%clk 0:00:17]}  Rh4 {[%clk 0:00:05]} 28. Ng3 {[%clk 0:00:10]}  Bf4 {[%clk 0:00:02]} 29. b4 {[%clk 0:00:07]} 1-0


[Site "https://www.chess.com"]

[Event "Titled Tuesday Blitz March 07 Early 2023"]
[White "Yuan, Qingyu"]
[Black "Andreikin, Dmitry"]
[WhiteFideId "8609772"]
[BlackFideId "4158814"]
[WhiteElo "2359"]
[BlackElo "2736"]
[Result "1-0"]
[Round "04"]
[TimeControl "180+2"]
[Date "2023.03.07"]
[WhiteClock "0:00:18"]
[BlackClock "0:00:11"]

1. e4 {[%clk 0:03:00]}  c5 {[%clk 0:02:59]} 2. Nf3 {[%clk 0:03:01]}  d6 {[%clk 0:02:59]} 3. Bb5+ {[%clk 0:03:01]}  Bd7 {[%clk 0:02:57]} 4. Bxd7+ {[%clk 0:03:01]}  Nxd7 {[%clk 0:02:57]} 5. O-O {[%clk 0:03:01]}  Ngf6 {[%clk 0:02:57]} 6. Qe2 {[%clk 0:03:01]}  g6 {[%clk 0:02:54]} 7. c3 {[%clk 0:03:01]}  Bg7 {[%clk 0:02:37]} 8. d4 {[%clk 0:03:01]}  cxd4 {[%clk 0:02:36]} 9. cxd4 {[%clk 0:03:02]}  e5 {[%clk 0:02:37]} 10. Rd1 {[%clk 0:02:50]}  exd4 {[%clk 0:02:35]} 11. Nxd4 {[%clk 0:02:41]}  O-O {[%clk 0:02:35]} 12. Nc3 {[%clk 0:02:41]}  a6 {[%clk 0:02:28]} 13. Bf4 {[%clk 0:02:37]}  Qb8 {[%clk 0:02:22]} 14. h3 {[%clk 0:02:18]}  Re8 {[%clk 0:02:22]} 15. Nb3 {[%clk 0:02:18]}  Ne5 {[%clk 0:02:17]} 16. a4 {[%clk 0:02:10]}  b5 {[%clk 0:02:05]} 17. axb5 {[%clk 0:02:05]}  axb5 {[%clk 0:02:06]} 18. Rxa8 {[%clk 0:01:35]}  Qxa8 {[%clk 0:02:07]} 19. Qxb5 {[%clk 0:01:32]}  Rb8 {[%clk 0:02:00]} 20. Qa5 {[%clk 0:01:32]}  Qb7 {[%clk 0:01:24]} 21. Rxd6 {[%clk 0:01:07]}  Nc6 {[%clk 0:01:06]} 22. Rxc6 {[%clk 0:01:00]}  Ra8 {[%clk 0:01:05]} 23. Qb6 {[%clk 0:00:52]}  Qe7 {[%clk 0:01:01]} 24. Bd6 {[%clk 0:00:48]}  Qe8 {[%clk 0:01:00]} 25. Nc5 {[%clk 0:00:44]}  h6 {[%clk 0:00:56]} 26. Kh2 {[%clk 0:00:44]}  Kh7 {[%clk 0:00:50]} 27. Rc7 {[%clk 0:00:39]}  Nh5 {[%clk 0:00:49]} 28. Re7 {[%clk 0:00:38]}  Qg8 {[%clk 0:00:45]} 29. Nd5 {[%clk 0:00:34]}  Bd4 {[%clk 0:00:41]} 30. Qb7 {[%clk 0:00:32]}  Rf8 {[%clk 0:00:41]} 31. f3 {[%clk 0:00:28]}  Kh8 {[%clk 0:00:37]} 32. b4 {[%clk 0:00:27]}  Qg7 {[%clk 0:00:35]} 33. Qc7 {[%clk 0:00:27]}  Ra8 {[%clk 0:00:28]} 34. Be5 {[%clk 0:00:26]}  Bxe5+ {[%clk 0:00:14]} 35. Qxe5 {[%clk 0:00:27]}  Qxe5+ {[%clk 0:00:13]} 36. Rxe5 {[%clk 0:00:28]}  Kg7 {[%clk 0:00:13]} 37. Re7 {[%clk 0:00:28]}  Ra2 {[%clk 0:00:13]} 38. b5 {[%clk 0:00:21]}  g5 {[%clk 0:00:14]} 39. b6 {[%clk 0:00:21]}  Kg6 {[%clk 0:00:14]} 40. b7 {[%clk 0:00:21]}  Rb2 {[%clk 0:00:14]} 41. Re8 {[%clk 0:00:20]}  g4 {[%clk 0:00:11]} 42. hxg4 {[%clk 0:00:18]} 1-0


[Site "https://www.chess.com"]

[Event "Titled Tuesday Blitz March 07 Early 2023"]
[White "Erigaisi Arjun"]
[Black "Pakleza, Zbigniew"]
[WhiteFideId "35009192"]
[BlackFideId "1119290"]
[WhiteElo "2737"]
[BlackElo "2410"]
[Result "1-0"]
[Round "04"]
[TimeControl "180+2"]
[Date "2023.03.07"]
[WhiteClock "0:00:41"]
[BlackClock "0:00:02"]

1. c4 {[%clk 0:02:57]}  c6 {[%clk 0:02:59]} 2. e3 {[%clk 0:02:55]}  d5 {[%clk 0:03:00]} 3. d4 {[%clk 0:02:55]}  Nf6 {[%clk 0:03:00]} 4. Nc3 {[%clk 0:02:53]}  Qb6 {[%clk 0:02:55]} 5. Nf3 {[%clk 0:02:50]}  Bf5 {[%clk 0:02:54]} 6. Bd3 {[%clk 0:02:49]}  Bxd3 {[%clk 0:02:53]} 7. Qxd3 {[%clk 0:02:49]}  e6 {[%clk 0:02:54]} 8. O-O {[%clk 0:02:48]}  Nbd7 {[%clk 0:02:55]} 9. e4 {[%clk 0:02:46]}  Qa6 {[%clk 0:02:51]} 10. b3 {[%clk 0:02:40]}  dxc4 {[%clk 0:02:33]} 11. bxc4 {[%clk 0:02:41]}  Nb6 {[%clk 0:02:33]} 12. Nd2 {[%clk 0:02:34]}  Be7 {[%clk 0:02:14]} 13. a4 {[%clk 0:02:27]}  O-O {[%clk 0:02:09]} 14. a5 {[%clk 0:02:18]}  Nbd7 {[%clk 0:01:59]} 15. e5 {[%clk 0:02:14]}  Nd5 {[%clk 0:01:45]} 16. Nce4 {[%clk 0:02:08]}  Rad8 {[%clk 0:01:28]} 17. Nf3 {[%clk 0:01:47]}  Nb4 {[%clk 0:01:22]} 18. Qc3 {[%clk 0:01:42]}  c5 {[%clk 0:00:44]} 19. dxc5 {[%clk 0:01:43]}  Qc6 {[%clk 0:00:44]} 20. Nd6 {[%clk 0:01:34]}  Na6 {[%clk 0:00:38]} 21. Nd4 {[%clk 0:01:33]}  Qc7 {[%clk 0:00:32]} 22. N4b5 {[%clk 0:01:29]}  Qb8 {[%clk 0:00:32]} 23. Qg3 {[%clk 0:01:27]}  Kh8 {[%clk 0:00:27]} 24. Ra3 {[%clk 0:01:06]}  Naxc5 {[%clk 0:00:26]} 25. Rf3 {[%clk 0:01:04]}  f5 {[%clk 0:00:19]} 26. exf6 {[%clk 0:00:59]}  Nxf6 {[%clk 0:00:17]} 27. Bf4 {[%clk 0:00:59]}  Nh5 {[%clk 0:00:14]} 28. Nf7+ {[%clk 0:00:54]}  Rxf7 {[%clk 0:00:15]} 29. Bxb8 {[%clk 0:00:55]}  Nxg3 {[%clk 0:00:15]} 30. Rxf7 {[%clk 0:00:47]}  Nxf1 {[%clk 0:00:06]} 31. Rxe7 {[%clk 0:00:48]}  Nd2 {[%clk 0:00:06]} 32. Bc7 {[%clk 0:00:45]}  Ra8 {[%clk 0:00:03]} 33. Be5 {[%clk 0:00:43]}  Kg8 {[%clk 0:00:01]} 34. Rxg7+ {[%clk 0:00:42]}  Kf8 {[%clk 0:00:02]} 35. Rxh7 {[%clk 0:00:41]} 1-0


[Site "https://www.chess.com"]